fUST/lending_fUST_20260107
["ID","MTS","AMOUNT","RATE_DAILY","PERIOD"]
[400715127,1767788069094,-500.0,0.00012223,2]
[400715128,1767788069125,-500.0,0.00012223,2]
[400715129,1767788069155,-500.0,0.00012223,2]
[400715130,1767788069315,-500.0,0.00012223,2]
[400715131,1767788069344,-500.0,0.00012223,2]
[400715132,1767788069373,-500.0,0.00012223,2]
[400715133,1767788069402,-500.0,0.00012223,2]
[400715134,1767788069431,-500.0,0.00012223,2]
[400715135,1767788069461,-500.0,0.00012223,2]
[400715136,1767788069489,-500.0,0.00012223,2]
[400715137,1767788069519,-500.0,0.00012223,2]
[400715138,1767788069547,-500.0,0.00012223,2]
[400715139,1767788069576,-500.0,0.00012223,2]
[400715140,1767788069712,-500.0,0.00012223,2]
[400715141,1767788069740,-500.0,0.00012223,2]
[400715142,1767788069771,-500.0,0.00012223,2]
[400715143,1767788069800,-500.0,0.00012223,2]
[400715144,1767788069829,-500.0,0.00012223,2]
[400715145,1767788069858,-500.0,0.00012223,2]
[400715146,1767788069887,-500.0,0.00012223,2]
[400715147,1767788069916,-500.0,0.00012223,2]
[400715148,1767788069947,-500.0,0.00012223,2]
[400715149,1767788069976,-500.0,0.00012223,2]
[400715150,1767788070372,-500.0,0.00012223,2]
[400715151,1767788070399,-500.0,0.00012223,2]
[400715152,1767788070425,-500.0,0.00012223,2]
[400715153,1767788070455,-500.0,0.00012223,2]
[400715154,1767788070482,-500.0,0.00012223,2]
[400715155,1767788070509,-313.36175256,0.00012223,2]
[400715156,1767788070537,-500.0,0.00012223,2]
[400715157,1767788070564,-230.66358569,0.00012223,2]
[400715158,1767788070595,-500.0,0.00012223,2]
[400715159,1767788070640,-500.0,0.00012223,2]
[400715160,1767788070669,-411.9593235,0.00012223,2]
[400715161,1767788091907,-88.0406765,0.00012223,2]
[400715162,1767788091936,-500.0,0.00012223,2]
[400715163,1767788091965,-500.0,0.00012223,2]
[400715164,1767788091993,-500.0,0.00012223,2]
[400715165,1767788092023,-500.0,0.00012223,2]
[400715166,1767788092052,-500.0,0.00012223,2]
[400715167,1767788092083,-500.0,0.00012223,2]
[400715168,1767788092111,-500.0,0.00012223,2]
[400715169,1767788092141,-500.0,0.00012223,2]
[400715170,1767788092169,-500.0,0.00012223,2]
[400715171,1767788092196,-323.928647,0.00012223,2]
[400715172,1767788092503,-176.071353,0.00012223,2]
[400715173,1767788092533,-500.0,0.00012223,2]
[400715174,1767788092561,-500.0,0.00012223,2]
[400715175,1767788092591,-500.0,0.00012223,2]
[400715176,1767788092624,-500.0,0.00012223,2]
[400715177,1767788092654,-500.0,0.00012223,2]
[400715178,1767788092685,-500.0,0.00012223,2]
[400715179,1767788092714,-500.0,0.00012223,2]
[400715180,1767788092741,-500.0,0.00012223,2]
[400715181,1767788092770,-500.0,0.00012223,2]
[400715182,1767788092799,-147.867294,0.00012223,2]
[400715183,1767788093103,-352.132706,0.00012223,2]
[400715184,1767788093134,-500.0,0.00012223,2]
[400715185,1767788093164,-500.0,0.00012223,2]
[400715186,1767788093197,-500.0,0.00012223,2]
[400715187,1767788093227,-500.0,0.00012223,2]
[400715188,1767788093258,-500.0,0.00012223,2]
[400715189,1767788093289,-500.0,0.00012223,2]
[400715190,1767788093321,-500.0,0.00012223,2]
[400715191,1767788093351,-500.0,0.00012223,2]
[400715192,1767788093382,-500.0,0.00012223,2]
[400715198,1767788128532,-300.0,0.00012222,2]
[400715199,1767788128562,-300.0,0.00012222,2]
[400715200,1767788128592,-1200.0,0.00012222,2]
[400715201,1767788128623,-500.0,0.00012223,2]
[400715202,1767788128654,-500.0,0.00012223,2]
[400715203,1767788128689,-500.0,0.00012223,2]
[400715204,1767788128720,-500.0,0.00012223,2]
[400715205,1767788128751,-500.0,0.00012223,2]
[400715206,1767788128782,-500.0,0.00012223,2]
[400715207,1767788129061,-500.0,0.00012223,2]
[400715208,1767788129091,-500.0,0.00012223,2]
[400715209,1767788129123,-500.0,0.00012223,2]
[400715210,1767788129152,-500.0,0.00012223,2]
[400715211,1767788129183,-500.0,0.00012223,2]
[400715212,1767788129214,-500.0,0.00012223,2]
[400715213,1767788129244,-500.0,0.00012223,2]
[400715214,1767788129274,-449.64445142,0.00012223,2]
[400715215,1767788129306,-500.0,0.00012223,2]
[400715216,1767788129338,-500.0,0.00012223,2]
[400715217,1767788129480,-500.0,0.00012223,2]
[400715218,1767788129512,-500.0,0.00012223,2]
[400715219,1767788129543,-500.0,0.00012223,2]
[400715220,1767788129574,-500.0,0.00012223,2]
[400715221,1767788129603,-500.0,0.00012223,2]
[400715222,1767788129642,-500.0,0.00012223,2]
[400715223,1767788129673,-500.0,0.00012223,2]
[400715224,1767788129705,-500.0,0.00012223,2]
[400715225,1767788129739,-500.0,0.00012223,2]
[400715226,1767788129771,-500.0,0.00012223,2]
[400715227,1767788129942,-500.0,0.00012223,2]
[400715228,1767788129972,-500.0,0.00012223,2]
[400715229,1767788130004,-650.0,0.00012223,2]
[400715230,1767788130034,-500.0,0.00012223,2]
[400715231,1767788130064,-500.0,0.00012223,2]
[400715232,1767788130093,-500.0,0.00012223,2]
[400715233,1767788130268,-500.0,0.00012223,2]
[400715234,1767788130299,-500.0,0.00012223,2]
[400715235,1767788130332,-500.0,0.00012223,2]
[400715236,1767788130364,-200.01,0.00012223,2]
[400715237,1767788130476,-299.99,0.00012223,2]
[400715238,1767788130507,-500.0,0.00012223,2]
[400715239,1767788130538,-500.0,0.00012223,2]
[400715240,1767788130568,-500.0,0.00012223,2]
[400715241,1767788130600,-500.0,0.00012223,2]
[400715242,1767788130633,-500.0,0.00012223,2]
[400715243,1767788130665,-500.0,0.00012223,2]
[400715244,1767788130699,-500.0,0.00012223,2]
[400715245,1767788130730,-500.0,0.00012223,2]
[400715246,1767788130762,-500.0,0.00012223,2]
[400715247,1767788130966,-500.0,0.00012223,2]
[400715248,1767788130994,-3545.00527411,0.00012223,2]
[400715249,1767788131129,-2524.42173108,0.000121,2]
[400715250,1767788131158,-1909.99945178,0.00012223,2]
[400715260,1767788174469,1131.16763428,0.00012224,2]
[400715261,1767788174496,3868.83236572,0.00012224,2]
[400715262,1767788182419,5000.0,0.00012224,2]
[400715263,1767788198256,1131.17763428,0.00012224,2]
[400715264,1767788198285,3868.82236572,0.00012224,2]
[400715265,1767788206172,5000.0,0.00012224,2]
[400715266,1767788221558,1131.18763428,0.00012224,2]
[400715267,1767788221582,3868.81236572,0.00012224,2]
[400715268,1767788244021,5000.0,0.00012224,2]
[400715269,1767788287688,197.15,9.56e-05,2]
[400715270,1767788287833,295.72,9.994e-05,2]
[400715271,1767788288324,394.3,0.00010429,2]
[400715272,1767788288748,244.02763428,0.00010864,2]
[400715273,1767788288773,248.84236572,0.00010864,2]
[400715274,1767788289176,591.45,0.00011298,2]
[400715275,1767788289588,690.02,0.00011733,2]
[400715276,1767788289989,788.6,0.00012167,2]
[400715278,1767788440420,163.99,0.00010281,2]
[400715279,1767788440865,218.66,0.00010728,2]
[400715280,1767788441532,273.32,0.00011175,2]
[400715281,1767788441758,327.98,0.00011622,2]
[400715282,1767788442257,382.65,0.0001207,2]
[400715283,1767788514894,186.35,8.89e-05,2]
[400715284,1767788515307,223.63,9.246e-05,2]
[400715285,1767788515771,260.9,9.601e-05,2]
[400715286,1767788516171,298.17,9.957e-05,2]
[400715287,1767788516589,335.44,0.00010313,2]
[400715288,1767788517078,372.71,0.00010668,2]
[400715289,1767788644232,154.56996185,0.00030137,120]
[400715435,1767789038448,-593.0,0.00012242,2]
[400715437,1767789038461,-150.7221787,0.00012286,2]
[400715439,1767789038474,-600.0,0.00012468,2]
[400715441,1767789038486,-617.2230827,0.00013699,2]
[400715443,1767789038497,-314.00298063,0.00013714,2]
[400715445,1767789038512,-405.99701937,0.00013714,2]
[400715447,1767789038525,-177.85217087,0.00014286,2]
[400715449,1767789038537,-300.0,0.00014772,2]
[400715451,1767789038549,-2049.85548399,0.00014773,2]
[400715454,1767789038574,-996.89782335,0.00014773,2]
[400715456,1767789038588,-7281.47669266,0.00014773,2]
[400715458,1767789038600,-594.48760347,0.000149,2]
[400715460,1767789038612,-1018.09986707,0.00015,2]
[400715462,1767789038625,-31548.41630509,0.00015,2]
[400715464,1767789038640,-150.8752938,0.00015,2]
[400715465,1767789038654,-502.26303891,0.00015,2]
[400715468,1767789038667,-999.999999,0.00015,2]
[400715469,1767789038678,-864.0,0.00015086,2]
[400715471,1767789038690,-215.68492171,0.00016,2]
[400715473,1767789038703,-420.0,0.00016171,2]
[400715475,1767789038714,-204.98216304,0.00016286,2]
[400715477,1767789038725,-183.85,0.0001644,2]
[400715479,1767789038738,-1000.0,0.00016594,2]
[400715481,1767789038752,-53819.04156786,0.00016778,2]
[400715483,1767789038766,-587.0,0.00017702,2]
[400715485,1767789038779,-27429.36672841,0.00018,2]
[400715487,1767789038791,-7559.34454943,0.00018154,2]
[400715489,1767789038803,-1000.0,0.00018254,2]
[400715491,1767789038814,-244.0,0.00018254,2]
[400715492,1767789038824,-232.11215521,0.00018286,2]
[400715494,1767789038835,-361.5009519,0.00018981,2]
[400715496,1767789038847,-17949.00191859,0.00019,2]
[400715498,1767789038857,-2603.49,0.00019,2]
[400715500,1767789038871,-497.81118302,0.00019205,5]
[400715502,1767789038884,-921032.10036417,0.00019415,2]
[400715504,1767789038897,-5745.74079194,0.00019415,2]
[400715506,1767789038914,-482.24165179,0.00019415,2]
[400715508,1767789038927,-2921.6862,0.00019415,2]
[400715510,1767789038942,-2741.79265226,0.00019415,2]
[400715513,1767789038965,-60030.36011037,0.00019415,2]
[400715515,1767789038980,-2555.7276687,0.00019415,2]
[400715617,1767789040644,-717.828,0.00019415,2]
[400715619,1767789040656,-500.0,0.00019415,2]
[400715625,1767789040699,-727.71476658,0.00019415,2]
[400715743,1767789044469,-500.0,0.00017999,2]
[400715744,1767789044480,-42.41,0.00017999,2]
[400715745,1767789044525,-457.59,0.00017999,2]
[400715746,1767789044536,-500.0,0.00017999,2]
[400715747,1767789044547,-487.00892918,0.00017999,2]
[400715748,1767789044558,-500.0,0.00017999,2]
[400715749,1767789044571,-500.0,0.00017999,2]
[400715750,1767789044582,-500.0,0.00017999,2]
[400715751,1767789044592,-500.0,0.00017999,2]
[400715752,1767789044603,-500.0,0.00017999,2]
[400715753,1767789044615,-500.0,0.00017999,2]
[400715754,1767789044625,-500.0,0.00017999,2]
[400715755,1767789044636,-271.27386425,0.00017999,2]
[400715756,1767789044647,-500.0,0.00017999,2]
[400715757,1767789044658,-500.0,0.00017999,2]
[400715758,1767789044669,-2544.80779419,0.00019415,2]
[400715759,1767789044679,-171.97,0.000196,2]
[400715760,1767789044690,-870.26,0.000196,2]
[400715761,1767789044700,-57791.68477226,0.0001999,2]
[400715762,1767789044711,-632.73035631,0.0002,2]
[400715763,1767789044721,-6827.86725616,0.0002,2]
[400715764,1767789044734,-7508.04858177,0.0002,2]
[400715772,1767789046434,-500.0,0.00017999,2]
[400715773,1767789046444,-500.0,0.00017999,2]
[400715774,1767789046455,-350.26633545,0.0002,2]
[400715775,1767789046465,-371.23034443,0.0002,2]
[400715776,1767789046476,-599.02649061,0.0002,2]
[400715777,1767789046486,-219.79173964,0.0002,2]
[400715778,1767789046498,-452.60481759,0.0002,2]
[400715779,1767789046511,-24.45234778,0.0002,2]
[400715780,1767789046522,-1414.26765222,0.0002,2]
[400715781,1767789046534,-678.749689,0.0002,2]
[400715782,1767789046547,-20627.32266041,0.0002,2]
[400715783,1767789047445,-279.65999837,0.0002,2]
[400715784,1767789047455,-202.52017028,0.0002,2]
[400715785,1767789047464,-503.77278596,0.0002,2]
[400715786,1767789047473,-159.84863644,0.0002,2]
[400715787,1767789047483,-3773.87372907,0.00020021,5]
[400715788,1767789047494,-1000.0,0.00020079,2]
[400715789,1767789047504,-492.0,0.00020079,2]
[400715790,1767789047515,-459.50208546,0.0002013,2]
[400715791,1767789047524,-259.24214737,0.00020286,2]
[400715792,1767789047534,-7559.34454943,0.00020292,2]
[400715793,1767789047543,-165.14,0.000206,2]
[400715794,1767789047553,-1387.87898167,0.0002061,2]
[400715795,1767789047563,-256.20863618,0.000209,2]
[400715796,1767789047573,-277.06974618,0.00021,2]
[400715797,1767789047583,-1081.32871409,0.00021,10]
[400715798,1767789047592,-1434.94128664,0.00021,2]
[400715799,1767789047601,-21743.45287225,0.00021,2]
[400715834,1767789407192,150.0,8.468e-05,2]
[400715835,1767789407600,150.0,8.837e-05,2]
[400715836,1767789408032,150.0,9.205e-05,2]
[400715837,1767789408432,150.0,9.573e-05,2]
[400715881,1767789474826,150.0,7.744e-05,2]
[400715882,1767789475276,150.0,8.112e-05,2]
[400715883,1767789475682,150.0,8.481e-05,2]
[400715884,1767789476135,150.0,8.85e-05,2]
[400716048,1767789894916,248.579,0.00030137,120]
[400716142,1767790222930,728.84416476,0.00012224,2]
[400716145,1767790231231,2000.0,0.00012224,2]
[400716148,1767790231731,-300.23,0.00012389,2]
[400716153,1767790237817,-294.77,0.00012389,2]
[400716154,1767790237826,-208.89841668,0.00012452,2]
[400716155,1767790237836,-500.0,0.00013,10]
[400716156,1767790237845,-500.0,0.00013,10]
[400716157,1767790237855,-500.0,0.00013273,2]
[400716158,1767790237864,-300.0,0.00013698,2]
[400716159,1767790237874,-500.0,0.00013699,2]
[400716160,1767790237884,-500.0,0.00013699,2]
[400716161,1767790237893,-500.0,0.00013699,2]
[400716162,1767790237903,-1000.0,0.00013821,2]
[400716163,1767790237914,-300.0,0.00013972,2]
[400716164,1767790237923,-300.0,0.00013972,2]
[400716165,1767790237934,-300.0,0.00013972,2]
[400716166,1767790237943,-300.0,0.00013972,2]
[400716167,1767790237953,-300.0,0.00013972,2]
[400716168,1767790237963,-300.0,0.00013972,2]
[400716169,1767790237972,-300.0,0.00013972,2]
[400716170,1767790237982,-300.0,0.00013972,2]
[400716171,1767790237991,-300.0,0.00013972,2]
[400716172,1767790238001,-382.05613913,0.00014247,2]
[400716173,1767790238010,-1000.0,0.00014247,2]
[400716174,1767790238019,-1000.0,0.00014247,2]
[400716175,1767790238027,-1500.0,0.00014368,2]
[400716176,1767790238036,-246.50013169,0.00014452,2]
[400716177,1767790238046,-1500.0,0.00014795,2]
[400716178,1767790238057,-1500.0,0.00014795,2]
[400716179,1767790238066,-2000.0,0.00014916,2]
[400716180,1767790238076,-267.0,0.00015011,2]
[400716181,1767790238086,-2000.0,0.00015342,2]
[400716182,1767790238095,-2000.0,0.00015342,2]
[400716183,1767790238105,-338.56279606,0.0001589,2]
[400716184,1767790238115,-2500.0,0.0001589,2]
[400716185,1767790238126,-3000.0,0.00016438,2]
[400716186,1767790238136,-284.10184669,0.00016452,2]
[400716187,1767790238146,-3500.0,0.00016986,2]
[400716188,1767790238156,-1000.0,0.00017059,2]
[400716189,1767790238166,-511.36258874,0.00017534,2]
[400716190,1767790238176,-2443.72890959,0.00017955,2]
[400716191,1767790238187,-2443.72890959,0.00018259,2]
[400716192,1767790238196,-321.70356169,0.00018452,2]
[400716193,1767790238205,-2443.72890959,0.00018557,2]
[400716194,1767790238215,-2443.72890959,0.00018718,2]
[400716195,1767790238225,-361.5009519,0.0001885,2]
[400716196,1767790238235,-1413.0703113,0.00018939,2]
[400716197,1767790238244,-2061.12063448,0.00018939,2]
[400716198,1767790238256,-500.0,0.00018988,2]
[400716199,1767790238265,-333.14484839,0.00018988,2]
[400716200,1767790238276,-666.12226228,0.00018988,2]
[400716201,1767790238286,-666.12226228,0.00018988,2]
[400716202,1767790238295,-500.0,0.00018988,2]
[400716203,1767790238304,-666.12226228,0.00018988,2]
[400716204,1767790238313,-666.12226228,0.00018988,2]
[400716205,1767790238323,-329.96301129,0.00018988,2]
[400716206,1767790238336,-666.12226228,0.00018988,2]
[400716207,1767790238345,-666.12226228,0.00018988,2]
[400716208,1767790238355,-666.12226228,0.00018988,2]
[400716209,1767790238364,-500.0,0.00018988,2]
[400716210,1767790238375,-666.12226228,0.00018988,2]
[400716211,1767790238384,-666.12226228,0.00018988,2]
[400716212,1767790238394,-666.12226228,0.00018988,2]
[400716213,1767790238405,-666.12226228,0.00018988,2]
[400716214,1767790238415,-666.12226228,0.00018988,2]
[400716215,1767790238425,-500.0,0.00018988,2]
[400716216,1767790238435,-500.0,0.00018988,2]
[400716217,1767790238444,-500.0,0.00018988,2]
[400716218,1767790238455,-500.0,0.00018988,2]
[400716219,1767790238465,-500.0,0.00018988,2]
[400716220,1767790238475,-500.0,0.00018988,2]
[400716221,1767790238484,-500.0,0.00018988,2]
[400716222,1767790238493,-500.0,0.00018988,2]
[400716223,1767790238502,-500.0,0.00018988,2]
[400716224,1767790238511,-500.0,0.00018988,2]
[400716225,1767790238521,-500.0,0.00018988,2]
[400716226,1767790238531,-500.0,0.00018988,2]
[400716228,1767790238540,-500.0,0.00018988,2]
[400716230,1767790238550,-500.0,0.00018988,2]
[400716232,1767790238559,-500.0,0.00018988,2]
[400716234,1767790238569,-500.0,0.00018988,2]
[400716236,1767790238578,-500.0,0.00018988,2]
[400716238,1767790238588,-500.0,0.00018988,2]
[400716240,1767790238597,-500.0,0.00018988,2]
[400716242,1767790238607,-500.0,0.00018988,2]
[400716244,1767790238617,-500.0,0.00018988,2]
[400716246,1767790238627,-500.0,0.00018988,2]
[400716248,1767790238637,-500.0,0.00018988,2]
[400716250,1767790238647,-500.0,0.00018988,2]
[400716252,1767790238657,-253.30356821,0.00018988,2]
[400716254,1767790238667,-500.0,0.00018988,2]
[400716257,1767790238677,-500.0,0.00018988,2]
[400716259,1767790238686,-500.0,0.00018988,2]
[400716261,1767790238695,-500.0,0.00018988,2]
[400716262,1767790238705,-500.0,0.00018988,2]
[400716265,1767790238715,-500.0,0.00018988,2]
[400716267,1767790238725,-500.0,0.00018988,2]
[400716269,1767790238734,-500.0,0.00018988,2]
[400716271,1767790238743,-500.0,0.00018988,2]
[400716273,1767790238753,-364.50454108,0.00018988,2]
[400716275,1767790238763,-500.0,0.00018988,2]
[400716277,1767790238772,-500.0,0.00018988,2]
[400716279,1767790238782,-500.0,0.00018988,2]
[400716281,1767790238792,-500.0,0.00018988,2]
[400716283,1767790238802,-500.0,0.00018988,2]
[400716285,1767790238812,-500.0,0.00018988,2]
[400716287,1767790238821,-500.0,0.00018988,2]
[400716289,1767790238832,-500.0,0.00018988,2]
[400716291,1767790238841,-500.0,0.00018988,2]
[400716292,1767790238851,-500.0,0.00018988,2]
[400716295,1767790238861,-500.0,0.00018988,2]
[400716296,1767790238871,-500.0,0.00018988,2]
[400716299,1767790238881,-500.0,0.00018988,2]
[400716301,1767790238891,-500.0,0.00018988,2]
[400716303,1767790238901,-444.67093833,0.00018988,2]
[400716305,1767790238911,-500.0,0.00018988,2]
[400716306,1767790238921,-500.0,0.00018988,2]
[400716309,1767790238931,-500.0,0.00018988,2]
[400716310,1767790238940,-500.0,0.00018988,2]
[400716312,1767790238954,-500.0,0.00018988,2]
[400716314,1767790238964,-500.0,0.00018988,2]
[400716316,1767790238974,-500.0,0.00018988,2]
[400716318,1767790238983,-17776.88271974,0.00018989,2]
[400716321,1767790238996,-982223.11728026,0.00018989,2]
[400716323,1767790239006,-500.0,0.00019039,2]
[400716324,1767790239015,-151.52117963,0.00019039,2]
[400716326,1767790239025,-150.0,0.00019039,2]
[400716328,1767790239035,-2443.72890959,0.0001913,2]
[400716330,1767790239044,-500.0,0.00019139,2]
[400716332,1767790239054,-150.0,0.00019139,2]
[400716334,1767790239064,-150.75126271,0.00019139,2]
[400716336,1767790239073,-150.0,0.0001914,2]
[400716338,1767790239083,-500.0,0.0001914,2]
[400716340,1767790239093,-206.58822789,0.0001914,2]
[400716342,1767790239102,-150.0,0.0001914,2]
[400716345,1767790239113,-500.0,0.0001914,2]
[400716347,1767790239122,-500.0,0.0001914,2]
[400716349,1767790239131,-500.0,0.0001914,2]
[400716351,1767790239140,-150.0,0.0001914,2]
[400716353,1767790239150,-150.0,0.0001914,2]
[400716355,1767790239160,-150.0,0.0001914,2]
[400716357,1767790239170,-150.0,0.0001914,2]
[400716359,1767790239179,-150.0,0.0001914,2]
[400716361,1767790239188,-150.0,0.0001914,2]
[400716363,1767790239198,-150.0,0.0001914,2]
[400716365,1767790239207,-500.0,0.00019176,2]
[400716367,1767790239216,-150.0,0.00019176,2]
[400716369,1767790239226,-352.8926,0.00019178,3]
[400716371,1767790239235,-352.8926,0.00019178,5]
[400716373,1767790239244,-352.8926,0.00019178,2]
[400716375,1767790239253,-352.8926,0.00019178,3]
[400716377,1767790239263,-352.8926,0.00019178,2]
[400716378,1767790239272,-352.8926,0.00019178,5]
[400716379,1767790239282,-352.8926,0.00019178,3]
[400716380,1767790239291,-352.8926,0.00019178,5]
[400716381,1767790239300,-352.8926,0.00019178,2]
[400716382,1767790239310,-2443.72890959,0.00019264,2]
[400716383,1767790239331,-500.0,0.00019276,2]
[400716384,1767790239351,-150.0,0.00019276,2]
[400716385,1767790239371,-261.88445837,0.00019277,2]
[400716386,1767790239393,-500.0,0.00019277,2]
[400716387,1767790239410,-150.0,0.00019277,2]
[400716388,1767790239420,-500.0,0.00019277,2]
[400716389,1767790239430,-603.89498635,0.00019277,2]
[400716390,1767790239441,-500.0,0.00019277,2]
[400716391,1767790239451,-209.63078805,0.00019277,2]
[400716392,1767790239463,-150.0,0.00019277,2]
[400716393,1767790239474,-150.0,0.00019277,2]
[400716394,1767790239485,-210.83487892,0.00019277,2]
[400716395,1767790239495,-150.0,0.00019277,2]
[400716396,1767790239505,-150.0,0.00019277,2]
[400716397,1767790239514,-150.0,0.00019277,2]
[400716398,1767790239523,-595.12568369,0.00019313,2]
[400716399,1767790239531,-150.0,0.00019313,2]
[400716400,1767790239540,-368.505,0.00019405,2]
[400716401,1767790239549,-505.98,0.00019405,3]
[400716402,1767790239558,-252.99,0.00019405,3]
[400716403,1767790239567,-759.0,0.00019405,3]
[400716404,1767790239577,-500.0,0.00019413,2]
[400716406,1767790239586,-259.14783661,0.00019413,2]
[400716407,1767790239594,-500.0,0.00019414,2]
[400716408,1767790239604,-150.0,0.00019414,2]
[400716409,1767790239613,-500.0,0.00019414,2]
[400716411,1767790239622,-500.0,0.00019414,2]
[400716413,1767790239632,-150.0,0.00019414,2]
[400716415,1767790239641,-150.0,0.00019414,2]
[400716417,1767790239651,-150.0,0.00019414,2]
[400716419,1767790239660,-150.0,0.00019414,2]
[400716421,1767790239669,-168.44,0.000195,2]
[400716423,1767790239684,-167.05,0.000195,2]
[400716425,1767790239707,-167.76,0.000195,2]
[400716427,1767790239726,-1694.94,0.000195,2]
[400716429,1767790239737,-23367.19,0.000195,2]
[400716431,1767790239747,-600.0,0.00019522,2]
[400716433,1767790239757,-314.3735124,0.0001955,2]
[400716435,1767790239769,-500.0,0.00019551,2]
[400716437,1767790239779,-150.0,0.00019551,2]
[400716439,1767790239788,-500.0,0.00019551,2]
[400716441,1767790239799,-500.0,0.00019551,2]
[400716443,1767790239810,-160.56827625,0.00019551,2]
[400716445,1767790239821,-150.0,0.00019551,2]
[400716447,1767790239834,-177.57781539,0.00019551,2]
[400716449,1767790239846,-2443.72890959,0.00019648,2]
[400716451,1767790239856,-1753.54338611,0.00019655,2]
[400716453,1767790239865,-500.0,0.00019688,2]
[400716455,1767790239874,-206.74458148,0.00019688,2]
[400716457,1767790239885,-500.0,0.00019688,2]
[400716459,1767790239897,-500.0,0.00019688,2]
[400716461,1767790239908,-156.27075541,0.00019688,2]
[400716463,1767790239917,-500.0,0.00019825,2]
[400716465,1767790239927,-621.60339535,0.00019825,2]
[400716467,1767790239938,-500.0,0.00019825,2]
[400716469,1767790239950,-2443.72890959,0.00019905,2]
[400716471,1767790239961,-500.0,0.00019962,2]
[400716473,1767790239973,-500.0,0.00019962,2]
[400716475,1767790239983,-456.92,0.00019968,2]
[400716478,1767790239995,-1972.0,0.0002,2]
[400716479,1767790240006,-181.25348447,0.0002,2]
[400716481,1767790240016,-556.5,0.0002,10]
[400716484,1767790240026,-2000.0,0.0002,14]
[400716485,1767790240038,-1103.0,0.0002,14]
[400716488,1767790240048,-48514.409324,0.00020068,2]
[400716489,1767790240059,-3662.6327141,0.00020068,2]
[400716492,1767790240071,-500.0,0.00020099,2]
[400716494,1767790240080,-500.0,0.00020099,2]
[400716495,1767790240092,-1010.92074997,0.000201,5]
[400716497,1767790240103,-739.05234448,0.00020101,5]
[400716499,1767790240114,-2443.72890959,0.00020134,2]
[400716502,1767790240129,-500.0,0.00020236,2]
[400716504,1767790240138,-364.24644296,0.00020236,2]
[400716506,1767790240147,-271.0,0.00020329,3]
[400716508,1767790240156,-500.0,0.00020373,2]
[400716510,1767790240165,-2061.12063446,0.00020378,2]
[400716511,1767790240174,-359.3052767,0.00020452,2]
[400716514,1767790240185,-2443.72890959,0.0002046,2]
[400716516,1767790240194,-500.0,0.0002051,2]
[400716518,1767790240203,-500.0,0.00020647,2]
[400716520,1767790240214,-282.0,0.00020662,2]
[400716522,1767790240223,-2443.72890964,0.00020676,2]
[400716524,1767790240232,-1011.96,0.00020775,3]
[400716526,1767790240242,-505.98,0.00020775,3]
[400716528,1767790240251,-500.0,0.00020784,2]
[400716530,1767790240261,-301464.637223,0.00020895,2]
[400716532,1767790240271,-500.0,0.00020921,2]
[400716534,1767790240280,-28256.54712775,0.00021,2]
[400716536,1767790240290,-500.71,0.00021,7]
[400716538,1767790240299,-500.0,0.00021058,2]
[400716540,1767790240308,-23367.19,0.000211,2]
[400716542,1767790240318,-302.47712024,0.00021195,2]